lending/lending_fUSD_20250318
["ID","MTS","AMOUNT","RATE_DAILY","PERIOD"]
[356367397,1742339529631,-500.0,0.00037808,12]
[356367398,1742339529641,-1007.61,0.00037808,12]
[356367399,1742339529650,-500.0,0.00037808,12]
[356367400,1742339529661,-616.02,0.00037808,12]
[356367401,1742339529670,-686.76,0.00037808,12]
[356367402,1742339529679,-500.0,0.00037808,12]
[356367403,1742339529689,-500.0,0.00037808,12]
[356367404,1742339529699,-202.11776626,0.00037808,12]
[356367405,1742339529710,-500.0,0.00037808,12]
[356367406,1742339529719,-531.32,0.00037808,12]
[356367407,1742339529728,-500.0,0.00037808,12]
[356367408,1742339529738,-601.48,0.00037808,12]
[356367409,1742339529747,-567.63,0.00037808,12]
[356367410,1742339529755,-369.74834985,0.00037808,12]
[356367411,1742339529764,-963.46,0.00037808,12]
[356367412,1742339529773,-500.0,0.00037808,12]
[356367413,1742339529783,-500.0,0.00037808,12]
[356367414,1742339529795,-815.63,0.00037808,12]
[356367415,1742339529803,-500.0,0.00037808,12]
[356367416,1742339529812,-500.0,0.00037808,12]
[356367417,1742339529822,-500.0,0.00037808,12]
[356367418,1742339529832,-500.0,0.00037808,12]
[356367419,1742339529841,-518.49987333,0.00037808,12]
[356367420,1742339529850,-500.0,0.00037808,12]
[356367421,1742339529859,-500.0,0.00037808,12]
[356367422,1742339529869,-500.0,0.00037808,12]
[356367423,1742339529878,-500.37,0.00037808,12]
[356367424,1742339529887,-546.76,0.00037808,12]
[356367425,1742339529896,-500.0,0.00037808,12]
[356367426,1742339529906,-500.0,0.00037808,12]
[356367427,1742339529915,-500.0,0.00037808,12]
[356367428,1742339529925,-500.0,0.00037808,12]
[356367429,1742339529935,-599.5,0.00037808,12]
[356367430,1742339529944,-729.58,0.00037808,12]
[356367431,1742339529952,-500.0,0.00037808,12]
[356367432,1742339529961,-922.39,0.00037808,12]
[356367433,1742339529970,-500.0,0.00037808,12]
[356367434,1742339529980,-462.563148,0.00037808,12]
[356367435,1742339529989,-1163.14,0.00037808,12]
[356367436,1742339529998,-875.92,0.00037808,30]
[356367437,1742339530008,-500.0,0.00037808,12]
[356367438,1742339530018,-750.87,0.00037808,12]
[356367439,1742339530028,-500.0,0.00037808,12]
[356367440,1742339530037,-1410.05,0.00037808,12]
[356367441,1742339530046,-510.0,0.00037808,12]
[356367442,1742339530055,-541.9,0.00037808,12]
[356367443,1742339530064,-500.0,0.00037808,12]
[356367444,1742339530073,-2100.21,0.00037808,12]
[356367445,1742339530081,-500.0,0.00037808,12]
[356367446,1742339530090,-819.72,0.00037808,12]
[356367447,1742339530099,-500.0,0.00037808,12]
[356367448,1742339530109,-462.53818797,0.00037808,12]
[356367449,1742339530118,-868.85,0.00037808,12]
[356367450,1742339530127,-500.0,0.00037808,12]
[356367451,1742339530135,-500.0,0.00037808,12]
[356367452,1742339530144,-832.99,0.00037808,12]
[356367453,1742339530153,-500.0,0.00037808,12]
[356367454,1742339530163,-500.0,0.00037808,12]
[356367455,1742339530172,-1487.67,0.00037808,12]
[356367456,1742339530181,-1565.380344,0.00037808,12]
[356367457,1742339530189,-500.0,0.00037808,12]
[356367458,1742339530199,-728.98,0.00037808,12]
[356367459,1742339530207,-156.823057,0.00037808,12]
[356367460,1742339530216,-500.0,0.00037808,12]
[356367461,1742339530225,-915.45,0.00037808,12]
[356367462,1742339530234,-500.0,0.00037808,12]
[356367463,1742339530243,-523.14,0.00037808,12]
[356367464,1742339530252,-500.0,0.00037808,12]
[356367465,1742339530261,-473.09417887,0.00037808,12]
[356367466,1742339530270,-500.0,0.00037808,12]
[356367467,1742339530376,-415.53198,0.00037808,12]
[356367468,1742339530386,-500.0,0.00037808,12]
[356367469,1742339530396,-500.0,0.00037808,12]
[356367470,1742339530405,-571.54,0.00037808,12]
[356367471,1742339530415,-500.0,0.00037808,12]
[356367472,1742339530425,-500.0,0.00037808,12]
[356367473,1742339530434,-547.0,0.00037808,12]
[356367474,1742339530442,-500.0,0.00037808,12]
[356367475,1742339530450,-1579.021524,0.00037808,12]
[356367476,1742339530459,-233.39459706,0.00037808,12]
[356367477,1742339530467,-540.14,0.00037808,12]
[356367478,1742339530476,-500.0,0.00037808,12]
[356367479,1742339530485,-500.0,0.00037808,12]
[356367480,1742339530494,-507.06,0.00037808,12]
[356367481,1742339530503,-500.0,0.00037808,12]
[356367482,1742339530511,-500.0,0.00037808,12]
[356367483,1742339530520,-1406.95,0.00037808,12]
[356367484,1742339530530,-1265.92,0.00037808,12]
[356367485,1742339530539,-583.92,0.00037808,12]
[356367486,1742339530547,-500.0,0.00037808,12]
[356367487,1742339530557,-819.59,0.00037808,12]
[356367488,1742339530566,-500.0,0.00037808,12]
[356367489,1742339530576,-1112.86,0.00037808,12]
[356367490,1742339530585,-500.0,0.00037808,12]
[356367491,1742339530595,-500.0,0.00037808,12]
[356367492,1742339530604,-500.0,0.00037808,12]
[356367493,1742339530614,-849.05,0.00037808,12]
[356367494,1742339530624,-610.12,0.00037808,12]
[356367495,1742339530634,-500.0,0.00037808,12]
[356367496,1742339530643,-500.0,0.00037808,12]
[356367497,1742339530653,-500.0,0.00037808,12]
[356367498,1742339530665,-966.8,0.00037808,12]
[356367499,1742339530674,-572.20365062,0.00037808,12]
[356367500,1742339530684,-562.17,0.00037808,12]
[356367501,1742339530694,-500.0,0.00037808,12]
[356367502,1742339530706,-500.0,0.00037808,12]
[356367503,1742339530715,-500.0,0.00037808,12]
[356367504,1742339530725,-500.0,0.00037808,12]
[356367505,1742339530734,-500.0,0.00037808,12]
[356367506,1742339530745,-512.04192345,0.00037808,12]
[356367507,1742339530755,-500.0,0.00037808,12]
[356367508,1742339530765,-565.83,0.00037808,12]
[356367509,1742339530775,-305.27496843,0.00037808,12]
[356367510,1742339530788,-897.12,0.00037808,12]
[356367511,1742339530799,-500.0,0.00037808,12]
[356367512,1742339530809,-500.0,0.00037808,12]
[356367513,1742339530819,-500.0,0.00037808,12]
[356367514,1742339530829,-500.0,0.00037808,12]
[356367515,1742339530839,-500.0,0.00037808,12]
[356367516,1742339530849,-588.08,0.00037808,12]
[356367517,1742339530858,-500.0,0.00037808,12]
[356367518,1742339530870,-539.17,0.00037808,12]
[356367519,1742339530881,-500.0,0.00037808,12]
[356367520,1742339530891,-500.0,0.00037808,12]
[356367521,1742339530900,-2686.86,0.00037808,12]
[356367522,1742339530911,-956.37,0.00037808,12]
[356367523,1742339530921,-500.0,0.00037808,12]
[356367524,1742339530931,-1521.69,0.00037808,7]
[356367525,1742339530941,-500.0,0.00037808,12]
[356367526,1742339530951,-914.58,0.00037808,12]
[356367527,1742339530960,-500.0,0.00037808,12]
[356367528,1742339530970,-522.54515829,0.00037808,12]
[356367529,1742339530979,-500.0,0.00037808,12]
[356367530,1742339530989,-537.65,0.00037808,12]
[356367531,1742339530998,-1313.1,0.00037808,12]
[356367532,1742339531007,-500.0,0.00037808,12]
[356367533,1742339531016,-500.0,0.00037808,12]
[356367534,1742339531026,-540.3490439,0.00037808,12]
[356367535,1742339531034,-894.12,0.00037808,12]
[356367536,1742339531044,-523.64,0.00037808,12]
[356367537,1742339531053,-500.0,0.00037808,12]
[356367538,1742339531063,-500.0,0.00037808,12]
[356367539,1742339531072,-500.0,0.00037808,12]
[356367540,1742339531082,-500.0,0.00037808,12]
[356367541,1742339531092,-523.91,0.00037808,12]
[356367542,1742339531101,-500.0,0.00037808,12]
[356367543,1742339531111,-845.67,0.00037808,12]
[356367544,1742339531120,-500.0,0.00037808,12]
[356367545,1742339531129,-500.0,0.00037808,12]
[356367546,1742339531138,-1156.08,0.00037808,12]
[356367547,1742339531148,-500.0,0.00037808,12]
[356367548,1742339531158,-510.37,0.00037808,12]
[356367549,1742339531167,-500.0,0.00037808,12]
[356367550,1742339531176,-500.0,0.00037808,12]
[356367551,1742339531186,-523.4863316,0.00037808,12]
[356367552,1742339531195,-655.83,0.00037808,12]
[356367553,1742339531204,-1175.67,0.00037808,12]
[356367554,1742339531214,-1360.65,0.00037808,12]
[356367555,1742339531223,-675.44,0.00037808,12]
[356367556,1742339531232,-584.29,0.00037808,12]
[356367557,1742339531241,-500.0,0.00037808,12]
[356367558,1742339531251,-500.0,0.00037808,12]
[356367559,1742339531260,-535.37,0.00037808,12]
[356367560,1742339531269,-940.73,0.00037808,12]
[356367561,1742339531279,-500.0,0.00037808,12]
[356367562,1742339531287,-500.0,0.00037808,12]
[356367563,1742339531296,-661.64,0.00037808,12]
[356367564,1742339531305,-628.6,0.00037808,12]
[356367565,1742339531314,-872.38,0.00037808,12]
[356367566,1742339531323,-671.95,0.00037808,12]
[356367567,1742339531332,-589.35,0.00037808,12]
[356367568,1742339531341,-500.0,0.00037808,12]
[356367569,1742339531350,-500.0,0.00037808,12]
[356367570,1742339531360,-500.0,0.00037808,12]
[356367571,1742339531368,-500.0,0.00037808,12]
[356367572,1742339531377,-500.0,0.00037808,12]
[356367573,1742339531386,-2111.58,0.00037808,12]
[356367574,1742339531394,-1118.44,0.00037808,12]
[356367575,1742339531403,-500.0,0.00037808,12]
[356367576,1742339531414,-500.0,0.00037808,12]
[356367577,1742339531424,-952.51,0.00037808,12]
[356367578,1742339531433,-500.0,0.00037808,12]
[356367579,1742339531443,-1141.77,0.00037808,12]
[356367580,1742339531452,-509.9,0.00037808,12]
[356367581,1742339531462,-786.29,0.00037808,12]
[356367582,1742339531472,-500.0,0.00037808,12]
[356367583,1742339531482,-885.74,0.00037808,12]
[356367584,1742339531492,-500.0,0.00037808,12]
[356367585,1742339531501,-500.0,0.00037808,12]
[356367586,1742339531511,-853.02,0.00037808,12]
[356367587,1742339531520,-500.0,0.00037808,12]
[356367588,1742339531530,-500.0,0.00037808,12]
[356367589,1742339531540,-930.16,0.00037808,12]
[356367590,1742339531549,-534.99,0.00037808,12]
[356367591,1742339531558,-500.0,0.00037808,12]
[356367592,1742339531568,-554.71,0.00037808,12]
[356367593,1742339531577,-195.81726238,0.00037808,12]
[356367594,1742339531587,-1096.04,0.00037808,12]
[356367595,1742339531596,-500.0,0.00037808,12]
[356367596,1742339531605,-446.39703512,0.00037808,12]
[356367597,1742339531615,-669.21,0.00037808,12]
[356367598,1742339531624,-2116.57,0.00037808,12]
[356367599,1742339531634,-500.0,0.00037808,12]
[356367600,1742339531644,-500.0,0.00037808,12]
[356367601,1742339531653,-379.66244063,0.00037808,12]
[356367602,1742339531665,-500.0,0.00037808,12]
[356367603,1742339531675,-824.59,0.00037808,12]
[356367604,1742339531686,-1273.18,0.00037808,12]
[356367605,1742339531696,-517.49255863,0.00037808,12]
[356367606,1742339531705,-500.0,0.00037808,12]
[356367607,1742339531715,-662.07,0.00037808,12]
[356367608,1742339531724,-1001.65,0.00037808,12]
[356367609,1742339531734,-865.19,0.00037808,12]
[356367610,1742339531743,-500.0,0.00037808,12]
[356367611,1742339531752,-569.57,0.00037808,12]
[356367612,1742339531762,-850.25,0.00037808,12]
[356367613,1742339531771,-2025.31,0.00037808,12]
[356367614,1742339531781,-500.0,0.00037808,12]
[356367615,1742339531794,-500.0,0.00037808,12]
[356367616,1742339531803,-1125.43,0.00037808,12]
[356367617,1742339531812,-1034.97,0.00037808,12]
[356367618,1742339531822,-736.13,0.00037808,12]
[356367619,1742339531833,-500.0,0.00037808,12]
[356367620,1742339531843,-500.0,0.00037808,12]
[356367621,1742339531852,-500.0,0.00037808,12]
[356367622,1742339531864,-500.0,0.00037808,12]
[356367623,1742339531876,-500.0,0.00037808,12]
[356367624,1742339531885,-705.75,0.00037808,12]
[356367625,1742339531895,-500.0,0.00037808,12]
[356367626,1742339531904,-1168.81,0.00037808,12]
[356367627,1742339531914,-500.0,0.00037808,12]
[356367628,1742339531924,-500.0,0.00037808,12]
[356367629,1742339531934,-909.53,0.00037808,12]
[356367630,1742339531943,-1214.66,0.00037808,12]
[356367631,1742339531952,-750.56,0.00037808,12]
[356367632,1742339531962,-500.0,0.00037808,12]
[356367633,1742339531971,-999.43,0.00037808,12]
[356367634,1742339531980,-200.0,0.00037808,7]
[356367635,1742339531990,-912.96,0.00037808,12]
[356367636,1742339532000,-500.0,0.00037808,12]
[356367637,1742339532009,-628.87,0.00037808,12]
[356367638,1742339532019,-1022.31,0.00037808,12]
[356367639,1742339532027,-500.0,0.00037808,12]
[356367640,1742339532036,-500.0,0.00037808,12]
[356367641,1742339532046,-664.59,0.00037808,12]
[356367642,1742339532055,-970.21,0.00037808,12]
[356367643,1742339532064,-605.69,0.00037808,12]
[356367644,1742339532073,-1253.42,0.00037808,12]
[356367645,1742339532083,-1388.92,0.00037808,12]
[356367646,1742339532093,-500.0,0.00037808,12]
[356367647,1742339532103,-500.0,0.00037808,12]
[356367648,1742339532112,-500.0,0.00037808,12]
[356367649,1742339532123,-500.0,0.00037808,12]
[356367650,1742339532133,-509.24231807,0.00037808,12]
[356367651,1742339532142,-500.0,0.00037808,12]
[356367652,1742339532152,-1024.33,0.00037808,12]
[356367653,1742339532161,-603.22,0.00037808,12]
[356367654,1742339532171,-747.21,0.00037808,12]
[356367655,1742339532181,-500.0,0.00037808,12]
[356367656,1742339532191,-500.0,0.00037808,12]
[356367657,1742339532200,-571.92802117,0.00037808,12]
[356367658,1742339532209,-500.0,0.00037808,12]
[356367659,1742339532219,-1242.02,0.00037808,12]
[356367660,1742339532228,-843.17,0.00037808,12]
[356367661,1742339532238,-535.11,0.00037808,12]
[356367662,1742339532248,-532.91,0.00037808,12]
[356367663,1742339532257,-500.0,0.00037808,12]
[356367664,1742339532266,-536.51,0.00037808,7]
[356367665,1742339532276,-510.72786054,0.00037808,12]
[356367666,1742339532286,-864.22,0.00037808,12]
[356367667,1742339532296,-500.0,0.00037808,12]
[356367668,1742339532305,-500.0,0.00037808,12]
[356367669,1742339532314,-500.0,0.00037808,12]
[356367670,1742339532323,-500.0,0.00037808,12]
[356367671,1742339532332,-500.0,0.00037808,12]
[356367672,1742339532342,-182.08642117,0.00037808,12]
[356367673,1742339532351,-1425.59,0.00037808,12]
[356367674,1742339532360,-500.0,0.00037808,12]
[356367675,1742339532371,-838.26,0.00037808,12]
[356367676,1742339532380,-500.0,0.00037808,12]
[356367677,1742339532390,-1035.77,0.00037808,12]
[356367678,1742339532399,-1119.9,0.00037808,12]
[356367679,1742339532409,-500.0,0.00037808,12]
[356367680,1742339532419,-940.64,0.00037808,12]
[356367681,1742339532430,-500.0,0.00037808,12]
[356367682,1742339532440,-500.0,0.00037808,12]
[356367683,1742339532451,-757.19,0.00037808,12]
[356367684,1742339532461,-500.0,0.00037808,12]
[356367685,1742339532471,-310.04364232,0.00037808,12]
[356367686,1742339532480,-500.0,0.00037808,12]
[356367687,1742339532490,-1602.15,0.00037808,12]
[356367688,1742339532499,-1002.8,0.00037808,12]
[356367689,1742339532509,-1331.13,0.00037808,12]
[356367690,1742339532519,-1198.43,0.00037808,12]
[356367691,1742339532528,-191.3801424,0.00037808,12]
[356367692,1742339532537,-500.0,0.00037808,12]
[356367693,1742339532546,-500.0,0.00037808,12]
[356367694,1742339532556,-649.81,0.00037808,12]
[356367695,1742339532565,-500.0,0.00037808,12]
[356367696,1742339532574,-303.47524867,0.00037808,12]
[356367697,1742339532583,-999.15,0.00037808,12]
[356367698,1742339532592,-2598.97,0.00037808,12]
[356367699,1742339532602,-500.0,0.00037808,12]
[356367700,1742339532611,-3644.21,0.00037808,12]
[356367701,1742339532621,-500.0,0.00037808,12]
[356367702,1742339532631,-500.0,0.00037808,12]
[356367703,1742339532640,-1387.99,0.00037808,12]
[356367704,1742339532650,-843.24,0.00037808,12]
[356367705,1742339532659,-500.0,0.00037808,12]
[356367706,1742339532668,-2465.62,0.00037808,12]
[356367707,1742339532677,-975.0,0.00037808,12]
[356367708,1742339532686,-609.77,0.00037808,12]
[356367709,1742339532695,-1078.91,0.00037808,12]
[356367710,1742339532704,-974.58,0.00037808,12]
[356367711,1742339532713,-2236.78,0.00037808,12]
[356367712,1742339532723,-1919.16,0.00037808,12]
[356367713,1742339532733,-2066.04,0.00037808,12]
[356367714,1742339532743,-1744.56,0.00037808,12]
[356367715,1742339532753,-924.09,0.00037808,12]
[356367716,1742339532763,-965.89,0.00037808,12]
[356367717,1742339532774,-500.0,0.00037808,12]
[356367718,1742339532786,-2170.13,0.00037808,7]
[356367719,1742339532797,-630.53,0.00037808,12]
[356367720,1742339532807,-500.0,0.00037808,12]
[356367721,1742339532818,-500.0,0.00037808,12]
[356367722,1742339532830,-4236.85,0.00037808,12]
[356367723,1742339532840,-940.24,0.00037808,12]
[356367724,1742339532849,-701.55,0.00037808,12]
[356367725,1742339532859,-2071.16,0.00037808,12]
[356367726,1742339532871,-2364.63,0.00037808,12]
[356367727,1742339532881,-833.55,0.00037808,12]
[356367728,1742339532892,-1084.3,0.00037808,12]
[356367729,1742339532902,-1166.33,0.00037808,12]
[356367730,1742339532914,-500.0,0.00037808,12]
[356367731,1742339532924,-1018.16,0.00037808,12]
[356367732,1742339532934,-500.0,0.00037808,12]
[356367733,1742339532944,-3791.02,0.00037808,12]
[356367734,1742339532954,-722.87,0.00037808,12]
[356367735,1742339532963,-591.18,0.00037808,12]
[356367736,1742339532973,-627.35,0.00037808,12]
[356367737,1742339532982,-2218.35,0.00037808,12]
[356367738,1742339532992,-433.99,0.00037808,12]
[356367739,1742339533002,-500.0,0.00037808,12]
[356367740,1742339533012,-2207.71,0.00037808,12]
[356367741,1742339533021,-1038.13,0.00037808,12]
[356367742,1742339533030,-7286.97,0.00037808,2]
[356367743,1742339533039,-500.0,0.00037808,12]
[356367744,1742339533048,-500.0,0.00037808,12]
[356367745,1742339533057,-500.0,0.00037808,12]
[356367746,1742339533066,-662.54,0.00037808,12]
[356367747,1742339533074,-4093.1,0.00037808,12]
[356367748,1742339533083,-500.0,0.00037808,12]
[356367749,1742339533093,-500.0,0.00037808,12]
[356367750,1742339533103,-617.61,0.00037808,12]
[356367751,1742339533112,-884.25,0.00037808,12]
[356367752,1742339533121,-568.35,0.00037808,12]
[356367753,1742339533130,-2314.16,0.00037808,12]
[356367754,1742339533140,-1249.76,0.00037808,12]
[356367755,1742339533150,-590.8,0.00037808,12]
[356367756,1742339533159,-605.74,0.00037808,12]
[356367757,1742339533169,-4019.27,0.00037808,12]
[356367758,1742339533179,-845.44,0.00037808,12]
[356367759,1742339533189,-500.0,0.00037808,12]
[356367760,1742339533199,-420.20523986,0.00037808,12]
[356367761,1742339533209,-500.0,0.00037808,12]
[356367762,1742339533219,-500.0,0.00037808,12]
[356367763,1742339533230,-1263.79,0.00037808,12]
[356367764,1742339533239,-500.0,0.00037808,12]
[356367765,1742339533248,-841.11,0.00037808,12]
[356367766,1742339533258,-722.51,0.00037808,12]
[356367767,1742339533268,-582.04,0.00037808,12]
[356367768,1742339533277,-1361.67,0.00037808,12]
[356367769,1742339533286,-713.87,0.00037808,12]
[356367770,1742339533297,-1473.86,0.00037808,12]
[356367771,1742339533306,-1912.63,0.00037808,12]
[356367772,1742339533316,-500.0,0.00037808,12]
[356367773,1742339533325,-500.0,0.00037808,12]
[356367774,1742339533334,-714.31,0.00037808,12]
[356367775,1742339533343,-635.53,0.00037808,12]
[356367776,1742339533352,-1883.04,0.00037808,12]
[356367777,1742339533361,-419.79970466,0.00037808,12]
[356367778,1742339533370,-500.0,0.00037808,12]
[356367779,1742339533380,-5988.8,0.00037808,12]
[356367780,1742339533389,-500.0,0.00037808,12]
[356367781,1742339533399,-2180.97,0.00037808,10]
[356367782,1742339533409,-1955.72,0.00037808,12]
[356367783,1742339533419,-2131.38,0.00037808,12]
[356367784,1742339533429,-6906.57,0.00037808,12]
[356367785,1742339533438,-515.84318305,0.00037808,12]
[356367786,1742339533449,-713.4,0.00037808,12]
[356367787,1742339533459,-1357.37,0.00037808,12]
[356367788,1742339533469,-758.94,0.00037808,12]
[356367789,1742339533479,-500.0,0.00037808,12]
[356367790,1742339533489,-517.02,0.00037808,12]
[356367791,1742339533499,-1496.75,0.00037808,12]
[356367792,1742339533509,-1214.53,0.00037808,12]
[356367793,1742339533519,-500.0,0.00037808,12]
[356367794,1742339533529,-500.0,0.00037808,12]
[356367795,1742339533539,-2414.38,0.00037808,12]
[356367796,1742339533548,-1375.9,0.00037808,12]
[356367797,1742339533558,-223.24326274,0.00037808,12]
[356367798,1742339533567,-500.0,0.00037808,12]
[356367799,1742339533577,-1974.79,0.00037808,12]
[356367800,1742339533587,-925.56,0.00037808,12]
[356367801,1742339533597,-712.94,0.00037808,12]
[356367802,1742339533607,-839.12,0.00037808,12]
[356367803,1742339533617,-1067.84,0.00037808,12]
[356367804,1742339533626,-767.88,0.00037808,12]
[356367805,1742339533636,-1426.33,0.00037808,12]
[356367806,1742339533645,-1432.86,0.00037808,12]
[356367807,1742339533655,-780.68,0.00037808,12]
[356367808,1742339533666,-1216.8,0.00037808,12]
[356367809,1742339533676,-1487.69,0.00037808,12]
[356367810,1742339533686,-500.0,0.00037808,12]
[356367811,1742339533696,-1708.8,0.00037808,12]
[356367812,1742339533706,-500.0,0.00037808,12]
[356367813,1742339533716,-674.04,0.00037808,12]
[356367814,1742339533725,-1017.99,0.00037808,12]
[356367815,1742339533735,-913.22,0.00037808,12]
[356367816,1742339533744,-1929.03,0.00037808,12]
[356367817,1742339533754,-902.37,0.00037808,12]
[356367818,1742339533764,-2290.36,0.00037808,12]
[356367819,1742339533774,-1430.23,0.00037808,12]
[356367820,1742339533785,-500.0,0.00037808,12]
[356367821,1742339533798,-1072.64,0.00037808,12]
[356367822,1742339533808,-514.39515219,0.00037808,12]
[356367823,1742339533818,-1760.11,0.00037808,12]
[356367824,1742339533829,-1638.63,0.00037808,12]
[356367825,1742339533839,-1729.5,0.00037808,12]
[356367826,1742339533849,-794.12,0.00037808,12]
[356367827,1742339533859,-1045.11,0.00037808,12]
[356367828,1742339533869,-682.57,0.00037808,12]
[356367829,1742339533878,-500.0,0.00037808,12]
[356367830,1742339533888,-500.0,0.00037808,12]
[356367831,1742339533898,-1395.45,0.00037808,12]
[356367832,1742339533908,-1231.14,0.00037808,12]
[356367833,1742339533919,-1432.26,0.00037808,12]
[356367834,1742339533929,-1130.18,0.00037808,12]
[356367835,1742339533938,-500.0,0.00037808,12]
[356367836,1742339533947,-1071.53,0.00037808,12]
[356367837,1742339533957,-500.0,0.00037808,12]
[356367838,1742339533967,-10881.54,0.00037808,12]
[356367839,1742339533977,-940.53,0.00037808,12]
[356367840,1742339533986,-931.98,0.00037808,12]
[356367841,1742339533996,-643.93,0.00037808,12]
[356367842,1742339534005,-736.61,0.00037808,12]
[356367843,1742339534015,-1889.22,0.00037808,12]
[356367844,1742339534026,-500.0,0.00037808,12]
[356367845,1742339534036,-1912.43,0.00037808,12]
[356367846,1742339534046,-1500.0,0.00037808,12]
[356367847,1742339534056,-500.0,0.00037808,12]
[356367848,1742339534066,-867.89,0.00037808,12]
[356367849,1742339534075,-655.9,0.00037808,12]
[356367850,1742339534086,-3492.09,0.00037808,12]
[356367851,1742339534097,-8347.58,0.00037808,12]
[356367852,1742339534107,-793.27,0.00037808,12]
[356367853,1742339534118,-982.97,0.00037808,12]
[356367854,1742339534128,-500.0,0.00037808,12]
[356367855,1742339534138,-2617.2,0.00037808,12]
[356367856,1742339534148,-500.0,0.00037808,12]
[356367857,1742339534158,-674.83,0.00037808,12]
[356367858,1742339534168,-2613.79,0.00037808,12]
[356367859,1742339534179,-1198.65,0.00037808,12]
[356367860,1742339534189,-500.0,0.00037808,12]
[356367861,1742339534199,-500.0,0.00037808,12]
[356367862,1742339534459,-500.0,0.00037808,12]
[356367863,1742339534469,-1104.92,0.00037808,12]
[356367864,1742339534480,-1000.0,0.00037808,12]
[356367865,1742339534494,-500.0,0.00037808,120]
[356367866,1742339534505,-1351.56,0.00037808,12]
[356367867,1742339534515,-500.0,0.00037808,12]
[356367868,1742339534524,-573.24,0.00037808,12]
[356367869,1742339534534,-1155.96,0.00037808,12]
[356367870,1742339534545,-592.77,0.00037808,12]
[356367871,1742339534557,-678.37,0.00037808,12]
[356367872,1742339534570,-819.5,0.00037808,12]
[356367873,1742339534580,-1747.47,0.00037808,12]
[356367874,1742339534589,-881.57,0.00037808,12]
[356367875,1742339534601,-733.05,0.00037808,12]
[356367876,1742339534611,-566.73,0.00037808,12]
[356367877,1742339534622,-779.59,0.00037808,12]
[356367878,1742339534633,-700.61,0.00037808,12]
[356367879,1742339534642,-500.0,0.00037808,12]
[356367880,1742339534655,-6201.97,0.00037808,12]
[356367881,1742339534664,-2724.32,0.00037808,12]
[356367882,1742339534674,-673.71,0.00037808,12]
[356367883,1742339534683,-500.0,0.00037808,6]
[356367884,1742339534692,-634.03,0.00037808,12]
[356367885,1742339534701,-1388.66,0.00037808,12]
[356367886,1742339534711,-1201.66,0.00037808,12]
[356367887,1742339534721,-500.0,0.00037808,12]
[356367888,1742339534730,-789.17,0.00037808,12]
[356367889,1742339534740,-500.0,0.00037808,12]
[356367890,1742339534749,-500.0,0.00037808,12]
[356367891,1742339534759,-500.0,0.00037808,12]
[356367892,1742339534768,-765.41,0.00037808,12]
[356367893,1742339534777,-637.48,0.00037808,12]
[356367894,1742339534789,-1408.89,0.00037808,12]
[356367895,1742339534798,-1079.25,0.00037808,12]
[356367896,1742339534807,-500.0,0.00037808,12]